bitfinex/quotes_SOLUSD_20250306
["timestamp","ask_amount","ask_price","bid_price","bid_amount"]
[1741230840759,20.033,149.67,149.55,42.41769912]
[1741230840957,19.07613357,149.65,149.53,48.98479912]
[1741230841185,19.07613357,149.63,149.5,50.93989912]
[1741230841385,0.42648471,149.58,149.47,125.5933]
[1741230841591,20.0,149.59,149.47,119.54]
[1741230841592,0.42648471,149.56,149.47,119.54]
[1741230841827,1.39123918,149.55,149.47,119.54]
[1741230841999,19.07613357,149.52,149.4,6.0533]
[1741230842163,1.39123918,149.51,149.4,6.0533]
[1741230842364,19.07613357,149.5,149.37,42.41769912]
[1741230842584,1.39123918,149.49,149.38,42.41769912]
[1741230842779,20.0,149.47,149.37,42.41769912]
[1741230842964,1.39123918,149.46,149.39,0.14216157]
[1741230843165,1.39123918,149.46,149.38,312.0]
[1741230843463,1.39123918,149.49,149.35,2.0]
[1741230843669,0.42648471,149.54,149.41,42.41769912]
[1741230843884,19.07613357,149.52,149.38,42.41769912]
[1741230844189,82.19123918,149.51,149.38,42.41769912]
[1741230844374,82.19123918,149.51,149.41,42.41769912]
[1741230844693,82.19123918,149.51,149.34,132.7654]
[1741230844694,99.87613357,149.5,149.34,132.7654]
[1741230844895,19.07613357,149.48,149.34,168.26309912]
[1741230845095,19.07613357,149.46,149.35,0.14216157]
[1741230845301,19.07613357,149.46,149.34,119.44]
[1741230845302,1.39123918,149.45,149.34,119.44]
[1741230845462,19.07613357,149.44,149.29,42.41769912]
[1741230845672,82.19123918,149.43,149.29,42.41769912]
[1741230845869,19.07613357,149.42,149.26,42.44769912]
[1741230846184,19.07613357,149.4,149.26,0.03]
[1741230846380,1.39123918,149.39,149.26,0.17216157]
[1741230846692,19.07613357,149.38,149.26,0.03]
[1741230846883,19.07613357,149.36,149.26,0.03]
[1741230847198,0.28432314,149.34,149.26,0.03]
[1741230847501,1.53340075,149.39,149.29,0.14216157]
[1741230847670,1.53340075,149.39,149.29,42.55986069]
[1741230848089,1.53340075,149.39,149.28,42.55986069]
[1741230848290,21.39123918,149.4,149.32,0.14216157]
[1741230848500,1.39123918,149.42,149.34,0.14216157]
[1741230848803,18.79181043,149.4,149.26,0.03]
[1741230849005,0.14216157,149.38,149.26,0.03]
[1741230849225,0.42648471,149.36,149.26,0.03]
[1741230849391,19.07613357,149.34,149.26,0.03]
[1741230849586,20.0,149.31,149.26,312.03]
[1741230849796,1.39123918,149.3,149.26,0.03]
[1741230849994,20.0,149.31,149.26,0.17216157]
[1741230850180,0.14216157,149.37,149.26,42.58986069]
[1741230850374,1.53340075,149.43,149.29,42.55986069]
[1741230850579,1.53340075,149.43,149.31,0.14216157]
[1741230850778,18.64964886,149.42,149.31,0.14216157]
[1741230850996,18.79181043,149.4,149.3,0.14216157]
[1741230851195,1.39123918,149.4,149.31,42.41769912]
[1741230851506,1.39123918,149.43,149.34,0.14216157]
[1741230851821,1.39123918,149.43,149.33,42.41769912]
[1741230852007,100.8,149.42,149.3,7.20216157]
[1741230852314,20.0,149.38,149.3,7.20216157]
[1741230852516,1.39123918,149.37,149.3,7.20216157]
[1741230852680,1.39123918,149.37,149.3,319.20216157]
[1741230853708,21.39123918,149.37,149.3,319.20216157]
[1741230854287,1.39123918,149.37,149.3,319.20216157]
[1741230854490,1.39123918,149.39,149.3,361.61986069]
[1741230854904,80.8,149.44,149.32,0.14216157]
[1741230855209,82.19123918,149.43,149.34,0.14216157]
[1741230855584,80.8,149.43,149.35,42.41769912]
[1741230855816,20.0,149.45,149.36,0.14216157]
[1741230856120,1.39123918,149.44,149.36,0.14216157]
[1741230856409,1.39123918,149.44,149.33,42.9863454]
[1741230856910,1.39123918,149.47,149.37,0.14216157]
[1741230857210,80.8,149.47,149.39,0.14216157]
[1741230857597,1.39123918,149.46,149.39,0.14216157]
[1741230857904,1.39123918,149.46,149.37,42.41769912]
[1741230857905,20.0,149.43,149.37,0.14216157]
[1741230858092,21.39123918,149.42,149.37,0.14216157]
[1741230859007,21.39123918,149.42,149.33,7.04]
[1741230859217,21.39123918,149.42,149.34,0.14216157]
[1741230859385,19.07613357,149.43,149.27,6.6992]
[1741230859386,82.61772389,149.41,149.27,6.6992]
[1741230859582,18.64964886,149.39,149.27,6.6992]
[1741230859789,1.39123918,149.38,149.28,19.21829514]
[1741230859994,1.39123918,149.38,149.28,42.41769912]
[1741230860193,1.39123918,149.38,149.27,42.41769912]
[1741230860492,1.39123918,149.38,149.27,0.14216157]
[1741230860694,1.39123918,149.38,149.26,56.22729912]
[1741230860890,1.39123918,149.38,149.28,354.41769912]
[1741230860891,19.07613357,149.37,149.28,354.41769912]
[1741230861099,1.39123918,149.36,149.28,312.0]
[1741230861621,1.39123918,149.37,149.29,0.14216157]
[1741230862022,1.39123918,149.37,149.28,0.14216157]
[1741230862714,80.8,149.38,149.3,42.41769912]
[1741230863026,23.50094786,149.48,149.3,42.41769912]
[1741230863027,82.19123918,149.46,149.36,0.14216157]
[1741230863212,82.19123918,149.46,149.38,0.14216157]
[1741230863702,20.0,149.43,149.38,0.14216157]
[1741230864313,21.39123918,149.42,149.37,7.1]
[1741230864488,21.39123918,149.42,149.37,319.1]
[1741230864921,21.39123918,149.42,149.37,7.1]
[1741230865096,21.39123918,149.42,149.32,0.14216157]
[1741230865297,20.0,149.41,149.32,0.14216157]
[1741230865800,19.07613357,149.39,149.3,7.08]
[1741230865999,20.0,149.36,149.3,7.08]
[1741230866204,1.39123918,149.35,149.3,7.08]
[1741230867094,1.6413,149.4,149.32,42.41769912]
[1741230867396,1.39123918,149.44,149.35,0.14216157]
[1741230868021,82.19123918,149.45,149.37,312.0]
[1741230868520,82.19123918,149.45,149.35,0.14216157]
[1741230869098,81.95123918,149.45,149.35,42.55986069]
[1741230869291,81.95123918,149.45,149.35,0.14216157]
[1741230869495,0.14216157,149.43,149.32,0.14216157]
[1741230869727,18.933972,149.42,149.32,0.14216157]
[1741230869897,1.39123918,149.41,149.32,0.14216157]
[1741230870096,1.39123918,149.42,149.33,0.14216157]
[1741230870292,1.39123918,149.42,149.33,42.55986069]
[1741230870533,0.14216157,149.46,149.35,42.55986069]
[1741230870828,1.67556232,149.46,149.35,42.55986069]
[1741230871022,1.67556232,149.46,149.35,0.14216157]
[1741230871223,20.0,149.44,149.35,0.14216157]
[1741230871403,20.0,149.43,149.38,0.14216157]
[1741230871601,6.4827,149.5,149.38,42.55986069]
[1741230871803,20.0,149.46,149.38,0.14216157]
[1741230871997,1.39123918,149.45,149.35,42.41769912]
[1741230872220,20.0,149.44,149.35,0.14216157]
[1741230872597,20.0,149.45,149.37,0.14216157]
[1741230873524,20.0,149.45,149.36,0.56864628]
[1741230873718,20.0,149.45,149.38,0.14216157]
[1741230873923,1.39123918,149.44,149.38,0.14216157]
[1741230874226,1.39123918,149.45,149.36,0.14216157]
[1741230874822,1.39123918,149.45,149.35,42.58986069]
[1741230875027,1.39123918,149.45,149.39,0.14216157]
[1741230875321,80.56,149.46,149.39,0.14216157]
[1741230875717,80.56,149.46,149.38,0.14216157]
[1741230876101,80.56,149.46,149.37,68.33059426]
[1741230876315,80.56,149.52,149.43,42.55986069]
[1741230876511,80.56,149.52,149.44,0.14216157]
[1741230877005,1.39123918,149.51,149.42,0.14216157]
[1741230877624,1.39123918,149.51,149.4,19.21829514]
[1741230877826,18.933972,149.49,149.4,0.14216157]
[1741230878126,1.39123918,149.48,149.4,0.14216157]
[1741230878303,81.95123918,149.48,149.4,0.14216157]
[1741230878504,19.07613357,149.47,149.4,0.14216157]
[1741230878702,19.07613357,149.47,149.39,7.02]
[1741230878703,1.39123918,149.46,149.39,7.02]
[1741230878900,81.95123918,149.46,149.35,0.03]
[1741230879119,81.95123918,149.46,149.35,0.17216157]
[1741230879359,81.95123918,149.46,149.37,61.20950955]
[1741230879504,0.28432314,149.5,149.39,0.14216157]
[1741230879703,1.39123918,149.5,149.39,61.20950955]
[1741230879934,80.56,149.52,149.43,0.14216157]
[1741230880121,1.6444,149.53,149.43,42.55986069]
[1741230880425,21.39123918,149.52,149.44,0.14216157]
[1741230880610,20.0,149.48,149.44,0.14216157]
[1741230880813,20.0,149.48,149.39,49.9863454]
[1741230881003,20.0,149.48,149.39,49.55986069]
[1741230881205,1.39123918,149.47,149.39,7.14216157]
[1741230881422,20.0,149.48,149.41,0.14216157]
[1741230881927,20.0,149.48,149.4,0.14216157]
[1741230882733,20.0,149.46,149.39,7.0]
[1741230882910,20.0,149.46,149.4,0.14216157]
[1741230883226,1.39123918,149.45,149.35,49.42769912]
[1741230883431,21.39123918,149.45,149.35,0.17216157]
[1741230883803,21.39123918,149.45,149.35,0.03]
[1741230884040,18.64964886,149.43,149.35,0.03]
[1741230884203,81.95123918,149.42,149.35,0.03]
[1741230884399,101.22543357,149.41,149.35,0.03]
[1741230884628,19.07613357,149.39,149.35,0.03]
[1741230884828,81.95123918,149.38,149.35,0.03]
[1741230885218,1.39123918,149.38,149.35,0.03]
[1741230885428,1.5893,149.41,149.35,0.03]
[1741230886027,80.56,149.43,149.35,0.03]
[1741230886228,1.39123918,149.43,149.35,0.17216157]
[1741230886431,1.6056,149.47,149.38,0.14216157]
[1741230886937,1.6056,149.47,149.35,0.03]
[1741230886938,18.79181043,149.45,149.35,0.03]
[1741230887144,81.98423918,149.46,149.36,61.63599426]
[1741230887310,0.033,149.46,149.38,19.21829514]
[1741230887511,0.033,149.46,149.44,0.14216157]
[1741230888009,0.033,149.46,149.42,42.41769912]
[1741230888208,0.033,149.46,149.43,0.14216157]
[1741230888410,0.033,149.46,149.45,0.14216157]
[1741230889537,0.033,149.46,149.39,42.41769912]
[1741230889723,0.033,149.46,149.4,0.14216157]
[1741230890041,0.033,149.46,149.4,7.12216157]
[1741230890640,0.033,149.46,149.4,6.98]
[1741230890833,20.0,149.45,149.4,6.98]
[1741230891027,21.39123918,149.44,149.35,0.03]
[1741230891335,20.0,149.42,149.35,0.03]
[1741230891530,20.0,149.42,149.35,0.17216157]
[1741230892328,20.0,149.42,149.35,0.03]
[1741230892543,20.0,149.42,149.36,0.14216157]
[1741230893440,0.033,149.46,149.38,19.21829514]
[1741230893642,0.033,149.46,149.38,61.63599426]
[1741230894526,0.033,149.46,149.4,61.63599426]
[1741230894728,0.033,149.46,149.42,0.14216157]
[1741230895338,0.033,149.46,149.4,0.14216157]
[1741230896065,20.0,149.42,149.35,0.03]
[1741230896268,20.0,149.39,149.35,0.03]
[1741230896557,21.39123918,149.38,149.35,0.03]
[1741230897127,100.56,149.37,149.35,0.03]
[1741230897327,1.39123918,149.39,149.35,0.03]
[1741230897760,7.87283918,149.4,149.35,0.03]
[1741230898062,1.5469,149.42,149.35,0.03]
[1741230898236,21.5469,149.42,149.35,0.03]
[1741230898928,21.5469,149.42,149.35,42.58986069]
[1741230899133,80.56,149.45,149.37,0.14216157]
[1741230899339,80.56,149.45,149.37,42.55986069]
[1741230900075,80.56,149.45,149.37,0.14216157]
[1741230900229,81.95123918,149.45,149.36,0.14216157]
[1741230900846,81.95123918,149.45,149.35,0.03]
[1741230900847,0.42648471,149.42,149.35,0.03]
[1741230901050,1.39123918,149.42,149.35,0.03]
[1741230901244,6.5146,149.46,149.37,0.14216157]
[1741230901452,0.033,149.46,149.4,42.55986069]
[1741230901645,0.033,149.46,149.4,0.14216157]
[1741230901876,80.56,149.45,149.35,0.03]
[1741230902038,101.02737275,149.44,149.35,0.03]
[1741230902349,20.0,149.4,149.35,0.03]
[1741230902553,81.95123918,149.39,149.35,0.03]
[1741230902735,80.56,149.42,149.35,0.03]
[1741230902939,80.56,149.45,149.38,0.14216157]
[1741230903323,0.033,149.46,149.41,61.63599426]
[1741230904133,0.033,149.46,149.43,0.14216157]
[1741230904535,0.033,149.46,149.45,42.9863454]
[1741230904740,0.033,149.46,149.45,61.63599426]
[1741230904939,0.033,149.46,149.45,0.14216157]
[1741230905341,0.033,149.46,149.39,0.14216157]
[1741230905647,0.033,149.46,149.38,6.96]
[1741230905648,20.0,149.45,149.38,6.96]
[1741230905849,81.95123918,149.44,149.38,6.96]
[1741230906028,81.95123918,149.44,149.37,0.14216157]
[1741230906355,81.95123918,149.44,149.36,119.54]
[1741230906653,0.42648471,149.42,149.35,0.03]
[1741230906957,19.07613357,149.4,149.35,0.03]
[1741230907140,81.95123918,149.39,149.35,0.03]
[1741230907534,80.56,149.38,149.35,0.03]
[1741230907738,1.39123918,149.37,149.35,0.03]
[1741230907964,80.56,149.36,149.35,0.03]
[1741230911058,1.39123918,149.38,149.35,0.03]
[1741230911355,1.39123918,149.41,149.35,0.03]
[1741230911556,20.0,149.37,149.35,0.03]
[1741230911874,21.39123918,149.36,149.35,0.03]
[1741230912157,20.0,149.36,149.35,0.03]
[1741230912331,1.39123918,149.38,149.35,0.03]
[1741230912537,80.56,149.37,149.35,0.03]
[1741230912735,1.39123918,149.38,149.35,0.03]
[1741230912939,80.56,149.42,149.35,0.03]
[1741230913147,80.56,149.42,149.36,0.14216157]
[1741230913355,80.56,149.42,149.36,42.55986069]
[1741230913750,9.8649727,149.45,149.38,42.55986069]
[1741230913941,9.8649727,149.45,149.4,0.14216157]
[1741230914141,9.8649727,149.45,149.4,42.55986069]
[1741230914341,9.8649727,149.45,149.4,354.55986069]
[1741230914556,9.8649727,149.45,149.4,312.14216157]
[1741230914958,9.8649727,149.45,149.36,42.41769912]
[1741230914959,11.25621188,149.45,149.36,42.41769912]
[1741230915272,11.25621188,149.45,149.35,6.86776157]
[1741230915443,80.56,149.44,149.37,0.14216157]
[1741230915756,81.95123918,149.44,149.37,0.14216157]
[1741230915962,81.95123918,149.44,149.35,42.44769912]
[1741230915963,0.42648471,149.42,149.35,0.03]
[1741230916139,19.07613357,149.4,149.35,0.03]
[1741230916339,1.39123918,149.39,149.35,0.03]
[1741230916538,20.0,149.37,149.35,0.03]
[1741230917456,80.56,149.4,149.35,0.03]
[1741230918240,80.56,149.44,149.37,0.14216157]
[1741230918541,0.033,149.45,149.39,42.55986069]
[1741230918742,0.033,149.45,149.41,0.14216157]
[1741230919341,0.033,149.45,149.44,0.14216157]
[1741230919645,0.033,149.45,149.44,81.63599426]
[1741230919849,0.033,149.45,149.44,0.14216157]
[1741230920060,0.033,149.45,149.41,0.56864628]
[1741230920248,0.033,149.45,149.44,42.9863454]
[1741230920452,9.8649727,149.46,149.45,0.14216157]
[1741230920649,9.8649727,149.46,149.45,42.55986069]
[1741230920855,9.8649727,149.46,149.45,61.63599426]
[1741230921466,2.39e-05,149.48,149.47,21.21829514]
[1741230921655,0.033,149.59,149.52,18.79181043]
[1741230921846,0.033,149.59,149.56,0.14216157]
[1741230922566,0.033,149.59,149.55,0.14216157]
[1741230923149,0.033,149.59,149.57,0.14216157]
[1741230923356,0.033,149.59,149.58,61.63599426]
[1741230924569,0.033,149.59,149.58,0.14216157]
[1741230926883,0.033,149.59,149.58,61.63599426]
[1741230927167,0.033,149.6,149.59,19.21829514]
[1741230927467,0.033,149.6,149.59,63.03881245]
[1741230927671,0.033,149.6,149.59,0.14216157]
[1741230927878,0.033,149.6,149.56,42.70202226]
[1741230928083,0.033,149.6,149.55,49.33769912]
[1741230928281,0.033,149.6,149.55,6.92]
[1741230928785,0.033,149.6,149.56,0.14216157]
[1741230930465,0.033,149.6,149.58,0.14216157]
[1741230930959,0.033,149.61,149.6,19.21829514]
[1741230931155,1.537,149.76,149.64,20.56864628]
[1741230931485,1.7026,149.74,149.66,0.14216157]
[1741230931682,0.668,149.68,149.66,0.14216157]
[1741230931992,0.7011,149.67,149.61,0.14216157]
[1741230932274,82.9314,149.67,149.61,0.14216157]
[1741230932585,82.9314,149.67,149.6,119.44]
[1741230932586,20.0,149.64,149.6,119.44]
[1741230932880,82.9314,149.67,149.6,119.44]
[1741230933178,20.0,149.64,149.61,0.14216157]
[1741230933881,84.32263918,149.67,149.61,0.14216157]
[1741230934083,81.2611,149.67,149.61,0.14216157]
[1741230934273,0.033,149.67,149.61,61.63599426]
[1741230934475,0.033,149.67,149.63,19.21829514]
[1741230934862,0.033,149.67,149.63,61.63599426]
[1741230935083,0.033,149.67,149.65,61.63599426]
[1741230935285,0.033,149.74,149.67,0.56864628]
[1741230935449,0.033,149.74,149.71,42.9863454]
[1741230935665,0.033,149.74,149.71,0.14216157]
[1741230935871,0.033,149.74,149.73,0.14216157]
[1741230936195,0.033,149.74,149.73,19.21829514]
[1741230936400,0.033,149.74,149.73,63.03786444]
[1741230936603,0.033,149.74,149.73,19.21829514]
[1741230936910,0.033,149.74,149.72,0.42648471]
[1741230937099,0.033,149.74,149.73,312.14216157]
[1741230937263,0.033,149.74,149.73,373.63599426]
[1741230937466,1.6427,149.82,149.77,0.56864628]
[1741230937667,2.3101,149.82,149.77,0.14216157]
[1741230937867,1.39123918,149.81,149.7,0.14216157]
[1741230938100,81.95123918,149.81,149.7,0.14216157]
[1741230938269,18.933972,149.8,149.7,0.14216157]
[1741230938470,2.3367,149.78,149.69,0.14216157]
[1741230938779,20.0,149.74,149.65,49.33769912]
[1741230938986,80.56,149.76,149.67,42.41769912]
[1741230939295,80.56,149.76,149.69,0.14216157]
[1741230939495,1.39123918,149.75,149.65,42.41769912]
[1741230939695,20.0,149.72,149.65,6.92]
[1741230940167,1.39123918,149.77,149.66,61.63599426]
[1741230940373,89.3559,149.78,149.68,61.63599426]
[1741230940595,20.0,149.75,149.68,312.14216157]
[1741230940803,20.0,149.75,149.65,6.92]
[1741230940971,20.0,149.75,149.66,0.14216157]
[1741230941170,7.1268,149.78,149.7,0.14216157]
[1741230941393,0.6675,149.8,149.73,0.14216157]
[1741230941576,20.0,149.78,149.73,0.14216157]
[1741230941973,20.0,149.78,149.68,42.41769912]
[1741230942174,81.95123918,149.78,149.68,0.14216157]
[1741230942386,0.6675,149.8,149.7,0.14216157]
[1741230942601,81.2275,149.81,149.72,42.84418383]
[1741230942768,81.2275,149.81,149.74,0.14216157]
[1741230942967,1.6427,149.82,149.76,0.14216157]
[1741230943619,1.6427,149.82,149.78,0.14216157]
[1741230943805,0.6973,149.85,149.78,312.14216157]
[1741230944416,0.6973,149.85,149.77,0.14216157]
[1741230944919,0.6973,149.85,149.77,19.21829514]
[1741230945095,0.03,149.85,149.79,61.63599426]
[1741230945306,0.03,149.85,149.83,0.56864628]
[1741230945487,0.03,149.85,149.84,18.64964886]
[1741230945685,0.03,149.85,149.84,61.63599426]
[1741230945884,0.03,149.89,149.88,19.21829514]
[1741230946226,0.03,150.0,149.92,19.21829514]
[1741230946383,0.03,150.0,149.97,0.14216157]
[1741230947001,0.03,150.0,149.95,0.14216157]
[1741230947194,1.42123918,150.0,149.95,0.14216157]
[1741230947398,0.03,150.0,149.95,0.14216157]
[1741230948018,1.39123918,149.99,149.89,0.14216157]
[1741230948229,20.0,149.95,149.88,6.96]
[1741230948395,20.0,149.94,149.87,42.41769912]
[1741230948591,0.6668,149.96,149.9,0.28432314]
[1741230948820,0.6667,149.98,149.91,0.14216157]
[1741230949021,20.0,149.96,149.91,0.14216157]
[1741230949228,82.2268,149.99,149.93,0.14216157]
[1741230949229,80.56,149.99,149.93,0.14216157]
[1741230949407,0.6967,150.0,149.93,61.35167112]
[1741230949728,0.6967,150.0,149.91,49.41769912]
[1741230949729,2.3633,150.0,149.91,49.41769912]
[1741230950029,21.39123918,149.99,149.92,0.14216157]
[1741230950589,82.8935,149.98,149.92,0.14216157]
[1741230950797,81.95123918,149.97,149.91,7.0]
[1741230951135,1.6103,149.95,149.84,6.98]
[1741230951301,1.39123918,149.94,149.84,6.98]
[1741230951613,1.6103,149.95,149.86,0.56864628]
[1741230951822,1.6103,149.95,149.9,0.14216157]
[1741230951994,0.6667,149.98,149.92,0.56864628]
[1741230952424,0.6667,149.98,149.92,0.14216157]
[1741230952606,2.3632,150.0,149.93,0.14216157]
[1741230952801,0.6966,150.0,149.93,42.55986069]
[1741230953003,0.03,150.0,149.95,42.55986069]
[1741230953226,0.03,150.0,149.97,0.14216157]
[1741230953605,0.03,150.0,149.97,42.55986069]
[1741230954001,0.03,150.0,149.99,42.55986069]
[1741230954195,0.03,150.0,149.99,61.63599426]
[1741230954397,0.03,150.0,149.99,19.21829514]
[1741230954796,0.03,150.0,149.98,0.14216157]
[1741230956107,0.03,150.0,149.98,18.64964886]
[1741230956407,0.03,150.0,149.99,19.21829514]
[1741230957436,0.03,150.0,149.96,0.14216157]
[1741230957607,0.03,150.0,149.96,0.42648471]
[1741230957805,0.03,150.0,149.96,0.14216157]
[1741230958041,0.03,150.0,149.97,0.14216157]
[1741230958260,0.03,150.0,149.99,0.14216157]
[1741230959341,0.03,150.0,149.97,0.42648471]
[1741230959640,0.03,150.0,149.98,0.28432314]
[1741230959837,0.03,150.0,149.92,13.3915]
[1741230960037,0.03,150.0,149.92,6.94]
[1741230960440,0.03,150.0,149.93,19.21829514]
[1741230960628,0.03,150.0,149.92,6.94]
[1741230960823,0.03,150.0,149.9,42.41769912]
[1741230961437,0.03,150.0,149.94,0.14216157]
[1741230961640,19.10613357,150.0,149.88,6.953]
[1741230961981,0.03,150.0,149.91,61.06734798]
[1741230962154,0.03,150.0,149.92,0.14216157]
[1741230962358,20.0,149.98,149.88,42.45069912]
[1741230962542,20.0,149.94,149.88,0.033]
[1741230962749,2.3342,149.94,149.88,0.033]
[1741230964758,0.667,149.92,149.88,0.033]
[1741230965320,1.39123918,149.91,149.88,0.033]
[1741230965522,81.95123918,149.91,149.82,119.14]
[1741230965764,80.56,149.9,149.82,119.14]
[1741230965937,1.39123918,149.89,149.82,119.14]
[1741230966135,1.6457,149.86,149.72,56.34211592]
[1741230966337,0.42648471,149.84,149.7,43.81954687]
[1741230966557,19.07613357,149.82,149.69,168.71094147]
[1741230966759,0.6675,149.8,149.69,168.71094147]
[1741230966987,0.6675,149.8,149.7,42.41769912]
[1741230967276,1.39123918,149.8,149.7,42.41769912]
[1741230967440,81.2275,149.81,149.71,19.07613357]
[1741230967936,81.95123918,149.8,149.69,126.08]
[1741230968141,81.95123918,149.8,149.69,119.14]
[1741230968341,81.95123918,149.8,149.7,0.14216157]
[1741230968556,81.95123918,149.8,149.7,19.21829514]
[1741230968836,6.94140339,149.86,149.7,19.21829514]
[1741230968837,0.6674,149.82,149.74,20.0]
[1741230969053,0.6674,149.82,149.73,0.14216157]
[1741230969384,20.0,149.77,149.69,119.14]
[1741230969670,1.6498,149.75,149.69,119.14]
[1741230969855,1.39123918,149.74,149.69,119.14]
[1741230970171,3.04103918,149.75,149.69,119.14]
[1741230970748,3.04103918,149.75,149.7,0.14216157]
[1741230971053,3.04103918,149.75,149.66,6.94]
[1741230971054,20.0,149.71,149.66,6.94]
[1741230971269,81.2278,149.74,149.66,6.94]
[1741230971270,81.95123918,149.73,149.66,6.94]
[1741230971566,80.56,149.72,149.62,18.64964886]
[1741230971878,81.95123918,149.71,149.6,0.24624235]
[1741230972043,81.95123918,149.71,149.6,0.033]
[1741230972245,20.0,149.67,149.6,0.033]
[1741230972461,1.39123918,149.66,149.6,0.033]
[1741230972767,1.5116,149.64,149.6,0.033]
[1741230972966,1.39123918,149.63,149.6,0.033]
[1741230973383,82.0716,149.64,149.6,0.033]
[1741230973982,81.95123918,149.63,149.6,0.033]
[1741230974180,80.98648471,149.62,149.6,0.033]
[1741230974391,1.39123918,149.61,149.6,0.033]
[1741230974762,80.56,149.62,149.6,0.033]
[1741230975690,1.39123918,149.61,149.6,0.033]
[1741230976470,80.56,149.62,149.6,0.033]
[1741230976660,81.95123918,149.62,149.6,0.033]
[1741230977371,82.61953918,149.62,149.6,0.033]
[1741230977577,80.56,149.61,149.6,0.033]
[1741230977878,20.0,149.61,149.6,0.033]
[1741230978293,20.6683,149.62,149.6,0.033]
[1741230978495,20.46737275,149.61,149.54,0.033]
[1741230978958,0.6684,149.6,149.54,0.033]
[1741230979285,0.6683,149.63,149.54,42.59286069]
[1741230979484,2.05953918,149.63,149.54,0.17516157]
[1741230979982,2.05953918,149.63,149.54,0.033]
[1741230980160,3.73023918,149.63,149.54,0.033]
[1741230980360,19.07613357,149.62,149.54,312.033]
[1741230980558,1.39123918,149.61,149.54,0.033]
[1741230980993,0.6684,149.6,149.54,0.033]
[1741230981191,1.39123918,149.59,149.54,0.033]
[1741230981855,2.05953918,149.62,149.54,0.17516157]
[1741230982057,1.39123918,149.62,149.56,0.14216157]
[1741230982384,1.5116,149.64,149.58,42.55986069]
[1741230982570,1.5116,149.64,149.58,42.41769912]
[1741230982773,1.5116,149.64,149.59,0.14216157]
[1741230983482,1.5116,149.64,149.59,312.14216157]
[1741230983993,2.1798,149.64,149.59,312.14216157]
[1741230984295,80.8,149.67,149.59,6.82696157]
[1741230984592,1.6488,149.7,149.63,42.55986069]
[1741230984769,1.6488,149.7,149.65,0.14216157]
[1741230984972,1.6488,149.7,149.65,42.55986069]
[1741230985177,1.6488,149.7,149.67,0.14216157]
[1741230985383,1.6788,149.77,149.69,0.14216157]
[1741230985553,2.3465,149.77,149.69,0.14216157]
[1741230985894,18.79181043,149.75,149.66,6.92]
[1741230986195,0.14216157,149.72,149.61,0.14216157]
[1741230986389,80.8,149.71,149.61,0.14216157]
[1741230986594,1.39123918,149.7,149.61,42.55986069]
[1741230987091,1.39123918,149.7,149.61,0.14216157]
[1741230987387,0.668,149.69,149.6,0.14216157]
[1741230987596,19.07613357,149.67,149.59,6.92]
[1741230987893,1.6016,149.65,149.54,0.033]
[1741230988187,101.26737275,149.64,149.54,0.033]
[1741230989166,0.6683,149.63,149.54,0.033]
[1741230989501,1.39123918,149.62,149.54,0.033]
[1741230989803,82.19123918,149.62,149.54,0.033]
[1741230990105,82.19123918,149.62,149.55,0.06313678]
[1741230990305,80.8,149.62,149.55,42.62299747]
[1741230990477,2.2698,149.65,149.59,42.41769912]
[1741230990666,2.2698,149.65,149.57,0.14216157]
[1741230990667,1.6016,149.65,149.61,42.41769912]
[1741230990872,1.6016,149.65,149.63,0.14216157]
[1741230991178,80.8,149.7,149.63,0.14216157]
[1741230991490,0.668,149.69,149.62,42.55986069]
[1741230991677,0.668,149.69,149.62,0.14216157]
[1741230991996,2.91443918,149.71,149.64,0.14216157]
[1741230992193,1.5232,149.71,149.67,0.14216157]
[1741230992409,2.05903918,149.74,149.67,0.14216157]
[1741230992895,2.05903918,149.74,149.66,0.14216157]
[1741230993474,2.05903918,149.74,149.67,0.14216157]